bitfinex/quotes_SOLUSD_20251204
["timestamp","ask_amount","ask_price","bid_price","bid_amount"]
[1764869770929,0.88,142.14,142.13,18.99978106]
[1764869771137,0.88,142.14,142.13,11.96396878]
[1764869771629,0.2,142.14,142.13,18.99978106]
[1764869772014,0.2,142.14,142.13,7.03581228]
[1764869772210,0.2,142.14,142.13,11.96396878]
[1764869772435,0.2,142.14,142.12,7.03611542]
[1764869772617,0.2,142.14,142.13,4.50453473]
[1764869773132,0.2,142.14,142.13,11.54034701]
[1764869774254,0.2,142.14,142.13,12.21034701]
[1764869775152,0.2,142.14,142.13,11.54034701]
[1764869775452,0.2,142.14,142.13,12.21034701]
[1764869777958,0.2,142.14,142.13,11.54034701]
[1764869778451,0.2,142.14,142.13,12.21034701]
[1764869778653,0.2,142.14,142.13,7.70581228]
[1764869778841,0.2,142.14,142.13,12.21034701]
[1764869779948,0.2,142.14,142.13,11.54034701]
[1764869780636,0.2,142.14,142.13,12.21034701]
[1764869781438,0.2,142.14,142.13,11.54034701]
[1764869782856,0.2,142.14,142.11,26.0613273]
[1764869783168,0.2,142.14,142.13,4.50453473]
[1764869783661,0.2,142.14,142.13,11.54034701]
[1764869784135,0.2,142.14,142.12,7.03626153]
[1764869784341,0.87,142.14,142.12,4.50453473]
[1764869784554,0.87,142.14,142.12,11.5407045]
[1764869784750,0.87,142.14,142.09,26.06390067]
[1764869784751,0.67,142.13,142.11,11.54133629]
[1764869785464,0.87,142.14,142.11,7.03680156]
[1764869785634,0.67,142.13,142.11,11.54133629]
[1764869785837,0.67,142.13,142.12,4.50453473]
[1764869786966,0.87,142.14,142.12,4.50453473]
[1764869787166,0.67,142.13,142.12,4.50453473]
[1764869788068,0.67,142.13,142.11,11.54133629]
[1764869788784,0.67,142.13,142.09,4.50453473]
[1764869788969,0.67,142.13,142.1,4.50453473]
[1764869789164,0.67,142.13,142.11,4.50453473]
[1764869789575,0.2,142.14,142.11,7.70673303]
[1764869789776,0.2,142.14,142.12,4.50453473]
[1764869789962,0.2,142.14,142.13,4.50453473]
[1764869790963,0.2,142.14,142.12,11.54067215]
[1764869791474,0.87,142.14,142.12,11.54067215]
[1764869792253,0.2,142.14,142.12,11.54067215]
[1764869792447,0.2,142.14,142.11,11.54124222]
[1764869792652,0.67,142.13,142.11,11.54124222]
[1764869792881,0.67,142.13,142.12,4.50453473]
[1764869793179,0.87,142.14,142.12,4.50453473]
[1764869794480,0.67,142.13,142.11,11.54124222]
[1764869794678,0.2,142.14,142.11,11.54124222]
[1764869794679,0.87,142.14,142.11,11.54124222]
[1764869795578,0.67,142.13,142.11,11.54124222]
[1764869795974,0.67,142.13,142.08,17.59502411]
[1764869796186,0.67,142.13,142.09,4.50453473]
[1764869796369,7.7062323,142.13,142.09,11.54197425]
[1764869796569,7.7062323,142.13,142.09,7.03743952]
[1764869796862,0.67,142.12,142.09,11.54197425]
[1764869797064,0.67,142.12,142.09,7.03743952]
[1764869797264,5.17453473,142.12,142.08,11.54263823]
[1764869797585,0.67,142.12,142.09,7.03767208]
[1764869799475,4.50453473,142.1,142.07,7.03859808]
[1764869799674,4.50453473,142.09,142.06,7.03914797]
[1764869799887,4.50453473,142.1,142.06,7.03914797]
[1764869800085,4.50453473,142.1,142.06,11.5436827]
[1764869800285,0.67,142.09,142.06,11.5436827]
[1764869800970,0.67,142.09,142.06,7.03914797]
[1764869801786,0.67,142.09,142.06,7.70914797]
[1764869803390,12.20147978,142.11,142.07,0.67]
[1764869803682,0.66,142.1,142.07,4.50453473]
[1764869803891,0.66,142.1,142.06,12.2136827]
[1764869804104,5.16453473,142.1,142.06,7.03914797]
[1764869804316,0.66,142.09,142.06,7.03914797]
[1764869804800,4.50453473,142.08,142.05,7.03956351]
[1764869805103,12.20245011,142.09,142.05,11.54409824]
[1764869805291,0.66,142.08,142.05,7.03956351]
[1764869805482,0.66,142.08,142.05,11.54409824]
[1764869807900,0.66,142.08,142.06,4.50453473]
[1764869808073,0.66,142.08,142.05,12.21409824]
[1764869809375,7.69831705,142.08,142.05,11.54409824]
[1764869809582,7.69831705,142.08,142.05,4.50453473]
[1764869809987,5.16453473,142.07,142.04,7.04004069]
[1764869810196,5.16453473,142.07,142.03,11.54515636]
[1764869810403,0.66,142.06,142.03,11.54515636]
[1764869810591,0.66,142.06,142.03,7.04062163]
[1764869810809,4.50453473,142.07,142.03,12.24515636]
[1764869811014,0.66,142.06,142.03,12.24515636]
[1764869813524,12.20414547,142.06,142.01,4.50453473]
[1764869813722,12.20414547,142.06,142.01,12.24601908]
[1764869813921,5.16453473,142.05,142.01,12.24601908]
[1764869814506,0.66,142.05,142.01,10.62930118]
[1764869814806,3.54781683,142.04,142.0,7.04224638]
[1764869815206,0.66,142.03,142.0,7.74224638]
[1764869815413,0.66,142.03,142.0,7.04224638]
[1764869815905,0.66,142.03,141.99,7.74254709]
[1764869816103,0.66,142.03,141.99,10.63036392]
[1764869816308,3.54781683,142.03,141.99,7.74254709]
[1764869816510,0.66,142.03,141.99,10.63036392]
[1764869817220,0.66,142.03,141.99,9.93036392]
[1764869817402,0.66,142.03,142.0,0.7]
[1764869817920,7.70082478,142.03,142.0,0.7]
[1764869818490,7.70082478,142.03,141.99,10.63036392]
[1764869818690,7.70082478,142.03,141.99,9.93036392]
[1764869818914,7.70082478,142.03,142.0,0.7]
[1764869819125,0.66,142.02,141.98,9.93096886]
[1764869819592,0.66,142.02,141.99,7.04270315]
[1764869820222,0.66,142.02,141.98,3.58781683]
[1764869820521,2.88781683,142.0,141.96,0.7]
[1764869820691,2.88781683,141.99,141.95,2.88781683]
[1764869821127,0.66,141.98,141.94,3.68781683]
[1764869821313,2.88781683,141.97,141.94,0.1]
[1764869821491,3.54781683,141.98,141.95,7.04470439]
[1764869821698,0.66,141.98,141.95,7.04470439]
[1764869821902,3.54781683,141.98,141.95,7.04470439]
[1764869822302,16.58994492,142.0,141.96,3.58781683]
[1764869822503,16.308864,142.02,141.98,2.88781683]
[1764869822809,0.66,142.03,142.0,2.88781683]
[1764869822810,7.78,142.03,142.0,2.88781683]
[1764869823005,7.78,142.03,142.01,7.04175762]
[1764869824020,7.78,142.03,142.0,10.62994299]
[1764869824600,7.78,142.03,142.0,7.74212616]
[1764869824802,15.48082369,142.03,142.0,7.04212616]
[1764869825116,9.9298459,142.01,141.97,9.93134798]
[1764869825294,9.9298459,142.01,141.97,10.63134798]
[1764869825492,10.5898459,142.01,141.97,7.74353115]
[1764869825697,0.66,142.0,141.96,10.6318672]
[1764869826000,3.54781683,142.0,141.95,9.93238471]
[1764869826190,3.54781683,142.0,141.94,0.8]
[1764869826191,2.88781683,141.99,141.94,20.59987265]
[1764869826391,26.2387099,142.01,141.96,3.58781683]
[1764869826810,26.8987099,142.01,141.97,0.7]
[1764869828018,26.8987099,142.01,141.97,7.74372579]
[1764869828222,0.66,142.0,141.96,9.93183891]
[1764869828424,0.66,142.0,141.96,10.63183891]
[1764869828633,26.2387099,142.01,141.97,0.7]
[1764869828793,26.2387099,142.01,141.96,9.93183891]
[1764869828994,2.88781683,141.99,141.95,9.93239929]
[1764869829221,9.93091127,141.99,141.95,7.04458246]
[1764869829419,10.59091127,141.99,141.95,10.63239929]
[1764869829607,33.91325805,142.01,141.96,3.58781683]
[1764869829608,9.93017379,142.0,141.96,3.58781683]
[1764869829809,7.04235696,142.0,141.96,3.58781683]
[1764869830012,7.04235696,142.0,141.97,0.7]
[1764869830395,34.6986264,142.01,141.97,0.7]
[1764869830600,34.6986264,142.01,141.97,3.58781683]
[1764869830799,3.54781683,142.0,141.96,2.88781683]
[1764869830996,3.54781683,142.0,141.95,7.74458246]
[1764869830997,2.88781683,141.99,141.94,2.98781683]
[1764869831232,9.93125816,141.98,141.94,10.03276813]
[1764869831412,7.70344133,141.98,141.94,10.73276813]
[1764869831722,24.69915465,142.0,141.96,2.88781683]
[1764869831927,45.26107488,142.01,141.96,2.88781683]
[1764869832227,52.40602618,142.01,141.96,3.58781683]
[1764869832419,0.66,142.0,141.96,3.58781683]
[1764869832624,7.70240405,142.0,141.96,3.58781683]
[1764869832825,7.70240405,142.0,141.96,10.63175707]
[1764869833918,10.59022088,142.0,141.96,7.74394024]
[1764869834715,7.04240405,142.0,141.96,9.93175707]
[1764869834923,31.15076296,142.01,141.97,3.55781683]
[1764869835129,34.03857979,142.01,141.97,3.55781683]
[1764869835419,102.7,142.03,141.99,2.88781683]
[1764869835734,105.58781683,142.03,142.0,0.67]
[1764869835913,3.55781683,142.03,141.99,3.55781683]
[1764869836627,10.68781683,142.04,142.0,3.55781683]
[1764869836934,0.67,142.03,141.99,10.60019065]
[1764869837314,17.72824213,142.04,141.99,9.93019065]
[1764869837543,18.39824213,142.04,142.0,0.67]
[1764869838013,18.39824213,142.04,142.0,7.71190668]
[1764869838545,17.72824213,142.04,142.01,0.67]
[1764869838710,3.55781683,142.07,142.03,2.88781683]
[1764869839033,28.96500361,142.07,142.01,0.67]
[1764869839208,28.96500361,142.07,142.03,2.88781683]
[1764869839720,26.07718678,142.07,142.03,2.88781683]
[1764869840028,35.3340066,142.07,142.02,7.04118939]
[1764869840236,36.0040066,142.07,142.02,9.92900622]
[1764869840708,36.0040066,142.07,142.03,0.67]
[1764869841034,10.59744179,142.06,142.02,9.92900622]
[1764869841221,10.59744179,142.06,142.02,10.59900622]
[1764869842814,9.92744179,142.06,142.02,10.59900622]
[1764869843015,0.67,142.05,142.04,2.88781683]
[1764869843510,9.47994492,142.05,142.0,0.67]
[1764869843713,9.47994492,142.05,142.02,2.88781683]
[1764869843913,24.6378229,142.06,142.04,2.88781683]
[1764869843914,14.81962496,142.06,142.04,2.88781683]
[1764869844319,15.48962496,142.06,142.04,2.88781683]
[1764869844518,15.48962496,142.06,142.02,7.71118141]
[1764869844719,15.48962496,142.06,142.04,2.88781683]
[1764869847756,120.30718678,142.07,142.04,0.67]
[1764869847757,127.34612988,142.07,142.04,0.67]
[1764869848046,135.79612988,142.07,142.05,2.88781683]
[1764869848248,135.12612988,142.07,142.05,2.88781683]
[1764869849632,117.5189431,142.07,142.05,2.88781683]
[1764869849828,117.5189431,142.07,142.06,2.88781683]
[1764869850036,124.56001846,142.07,142.06,2.88781683]
[1764869850268,109.7389431,142.07,142.06,2.88781683]
[1764869851373,11.55126732,142.08,142.06,3.55781683]
[1764869851539,7.78,142.09,142.07,2.88781683]
[1764869851944,14.81795371,142.09,142.07,2.88781683]
[1764869852145,15.48795371,142.09,142.07,2.88781683]
[1764869852450,9.47994492,142.08,142.06,2.88781683]
[1764869852959,9.47994492,142.08,142.05,2.88781683]
[1764869853256,9.47994492,142.08,142.04,0.67]
[1764869853257,9.47994492,142.08,142.06,2.88781683]
[1764869853962,7.03878369,142.07,142.06,2.88781683]
[1764869854168,7.03878369,142.07,142.05,2.88781683]
[1764869854465,0.67,142.06,142.05,2.88781683]
[1764869854637,15.48878369,142.07,142.05,2.88781683]
[1764869856133,14.81878369,142.07,142.05,2.88781683]
[1764869856446,14.81878369,142.07,142.06,3.55781683]
[1764869856447,7.78,142.07,142.06,3.55781683]
[1764869856639,14.81878369,142.07,142.06,2.88781683]
[1764869857062,7.78,142.07,142.06,3.55781683]
[1764869857275,7.78,142.09,142.06,3.55781683]
[1764869857437,14.81790125,142.09,142.07,2.88781683]
[1764869857832,15.48790125,142.09,142.07,2.88781683]
[1764869858338,28.67662575,142.08,142.02,0.67]
[1764869858542,7.78,142.07,142.03,2.88781683]
[1764869858755,8.45,142.07,142.03,2.88781683]
[1764869858964,0.67,142.06,142.03,2.88781683]
[1764869859162,28.00662575,142.05,141.98,0.67]
[1764869859342,7.04076603,142.03,142.0,2.88781683]
[1764869859761,12.36776175,142.02,141.95,18.28123732]
[1764869859947,7.78,142.01,141.98,2.88781683]
[1764869860134,8.45,142.01,141.97,2.88781683]
[1764869860330,0.67,142.0,141.96,7.71403658]
[1764869860535,0.67,142.0,141.96,10.60185341]
[1764869860761,0.67,142.0,141.97,2.88781683]
[1764869861363,10.60015058,142.0,141.96,7.71403658]
[1764869863865,9.93015058,142.0,141.97,0.66]
[1764869864858,16.97418716,142.0,141.97,0.66]
[1764869865554,17.68418716,142.0,141.95,7.70473406]
[1764869865756,17.68418716,142.0,141.96,0.66]
[1764869865957,14.08637033,142.0,141.97,2.88781683]
[1764869866155,7.75233375,142.0,141.96,3.54781683]
[1764869866344,10.64015058,142.0,141.96,0.66]
[1764869867589,9.93015058,142.0,141.96,7.70401907]
[1764869867945,9.93015058,142.0,141.97,0.66]
[1764869868578,10.64015058,142.0,141.97,0.66]
[1764869868762,9.93015058,142.0,141.97,0.66]
[1764869869848,12.40776175,141.99,141.95,0.66]
[1764869870053,10.66781683,141.98,141.94,7.14494776]
[1764869870253,11.37781683,141.98,141.94,0.76]
[1764869870558,27.13472925,141.97,141.94,0.1]
[1764869870956,17.61478433,141.97,141.94,0.76]
[1764869871156,17.71116761,141.98,141.94,10.69277821]
[1764869871352,18.42116761,141.98,141.94,0.1]
[1764869871567,18.42116761,141.98,141.94,0.76]
[1764869871982,14.82335078,141.98,141.94,10.6928124]
[1764869872578,14.82335078,141.98,141.95,0.66]
[1764869872782,17.71116761,141.98,141.94,10.0328124]
[1764869872958,18.42116761,141.98,141.94,0.76]
[1764869873360,36.02928142,141.98,141.94,0.76]
[1764869873580,2.88781683,141.97,141.94,0.76]
[1764869873749,36.02928142,141.98,141.94,0.76]
[1764869875096,33.14146459,141.98,141.94,0.76]
[1764869875262,7.78,141.98,141.95,2.88781683]
[1764869875653,7.78,141.98,141.96,0.66]
[1764869875955,7.78,141.98,141.95,0.66]
[1764869877553,7.78,141.98,141.95,12.22114393]
[1764869877952,7.78,141.98,141.96,0.66]
[1764869879670,7.78,141.98,141.95,7.04446777]
[1764869879870,7.78,141.98,141.95,7.70446777]
[1764869880391,5.22667616,141.97,141.94,0.1]
[1764869880601,11.56134537,141.96,141.94,0.1]
[1764869880895,7.78,141.96,141.95,0.66]
[1764869881272,14.82354902,141.98,141.95,0.66]
[1764869882994,19.34022518,141.98,141.95,0.66]
[1764869883174,20.05022518,141.98,141.94,0.76]
[1764869883571,20.05022518,141.98,141.94,0.1]
[1764869883572,5.22667616,141.97,141.94,0.1]
[1764869884106,13.00667616,141.96,141.94,0.1]
[1764869884314,8.49,141.96,141.94,0.1]
[1764869884478,4.51667616,141.95,141.94,0.1]
[1764869884971,5.22667616,141.95,141.94,0.1]
[1764869885176,21.08135514,141.95,141.94,0.1]
[1764869886910,28.86135514,141.95,141.94,0.1]
[1764869887525,28.86135514,141.95,141.9,0.1]
[1764869887526,29.63548508,141.91,141.9,0.1]
[1764869887713,37.41548508,141.91,141.9,0.1]
[1764869887915,38.12548508,141.91,141.9,0.1]
[1764869889110,45.17220483,141.91,141.9,0.1]
[1764869890805,32.16552867,141.91,141.9,0.1]
[1764869891019,45.19220483,141.91,141.9,0.1]
[1764869891924,62.8090042,141.91,141.87,0.1]
[1764869892108,29.63548508,141.88,141.87,0.1]
[1764869892314,37.43548508,141.88,141.87,0.1]
[1764869892500,38.14548508,141.88,141.87,0.1]
[1764869892705,40.96844989,141.88,141.87,0.1]
[1764869892926,27.94177373,141.88,141.87,0.1]
[1764869893130,38.10548508,141.88,141.87,0.1]
[1764869893322,61.56255883,141.88,141.87,0.1]
[1764869895426,61.56255883,141.88,141.81,0.1]
[1764869895427,8.80994492,141.87,141.81,0.1]
[1764869895733,9.03335232,141.82,141.81,0.1]
[1764869895939,12.31667616,141.82,141.81,0.1]
[1764869896136,8.47,141.82,141.81,0.1]
[1764869896336,15.81043811,141.82,141.81,0.1]
[1764869896931,45.44592319,141.82,141.81,0.1]
[1764869897331,36.18825084,141.82,141.81,0.1]
[1764869897534,25.11880892,141.8,141.79,0.1]
[1764869897736,37.43548508,141.8,141.79,0.1]
[1764869898037,38.10548508,141.8,141.79,0.1]
[1764869899537,45.15767125,141.8,141.79,0.1]
[1764869901016,25.11880892,141.77,141.76,0.1]
[1764869901242,41.95216124,141.77,141.76,0.1]
[1764869901417,49.67583973,141.77,141.76,0.1]
[1764869902041,45.15916357,141.77,141.76,0.1]
[1764869902239,32.91880892,141.77,141.76,0.1]
[1764869902433,37.43548508,141.77,141.76,0.1]
[1764869902935,12.31667616,141.77,141.76,0.78]
[1764869903136,19.37035465,141.77,141.76,0.1]
[1764869904043,28.18029957,141.77,141.76,0.1]
[1764869904744,28.85029957,141.77,141.76,0.1]
[1764869906547,25.11880892,141.73,141.64,0.1]
[1764869906747,8.80994492,141.71,141.68,0.68]
[1764869907043,7.8,141.7,141.66,0.68]
[1764869907233,7.8,141.7,141.67,0.68]
[1764869908050,4.51667616,141.68,141.67,7.73865744]
[1764869908229,12.31667616,141.68,141.67,0.68]
[1764869908436,12.03426379,141.68,141.67,0.68]
[1764869908642,7.8,141.68,141.67,0.68]
[1764869908828,19.83426379,141.68,141.67,0.68]
[1764869911874,12.03426379,141.7,141.67,7.73865744]
[1764869912172,7.8,141.7,141.67,7.73865744]
[1764869912371,7.8,141.7,141.68,0.68]
[1764869912680,19.83426379,141.7,141.68,0.68]
[1764869912972,7.8,141.7,141.68,7.73786195]
[1764869913272,7.8,141.72,141.68,19.77212574]
[1764869913475,7.8,141.72,141.69,0.68]
[1764869913844,19.83426379,141.72,141.69,0.68]
[1764869914046,7.8,141.72,141.69,12.71426379]
[1764869914664,7.8,141.72,141.7,0.68]
[1764869915971,7.8,141.72,141.7,7.73711091]
[1764869916369,7.8,141.72,141.71,0.68]
[1764869917076,15.86632063,141.72,141.68,0.68]
[1764869917268,35.70058442,141.72,141.69,0.68]
[1764869918356,23.66632063,141.72,141.69,0.68]
[1764869918556,35.70058442,141.72,141.69,0.68]
[1764869918976,12.03426379,141.7,141.68,0.68]
[1764869919193,19.83426379,141.7,141.68,0.68]
[1764869920560,12.03426379,141.69,141.66,0.68]
[1764869920765,19.83426379,141.68,141.64,0.1]
[1764869921064,7.05865744,141.67,141.65,0.68]
[1764869921673,26.89263832,141.68,141.65,0.68]
[1764869921975,12.03426379,141.67,141.65,0.68]
[1764869922175,7.8,141.66,141.65,0.68]
[1764869923879,19.09263832,141.68,141.65,7.73965407]
[1764869924092,7.8,141.67,141.66,0.68]
[1764869925669,7.8,141.67,141.64,0.1]
[1764869925670,14.85874215,141.67,141.64,0.1]
[1764869925869,27.57300594,141.67,141.64,0.1]
[1764869926593,12.03426379,141.66,141.64,0.1]
[1764869926893,15.53874215,141.67,141.64,0.1]
[1764869926894,19.83426379,141.65,141.64,0.1]
[1764869927068,35.70386278,141.65,141.64,0.1]
[1764869928368,28.20802241,141.65,141.64,0.1]
[1764869928880,7.8,141.65,141.64,0.78]
[1764869929993,7.8,141.65,141.64,0.1]
[1764869930173,7.8,141.65,141.64,0.78]
[1764869930494,19.39807749,141.65,141.64,0.1]
[1764869930689,28.20802241,141.65,141.64,0.1]
[1764869930991,45.19688641,141.65,141.64,0.1]
[1764869932492,61.86362291,141.65,141.64,0.1]
[1764869932797,66.40204633,141.65,141.64,0.1]
[1764869932998,61.86362291,141.65,141.64,0.1]
[1764869933179,66.40204633,141.65,141.64,0.1]
[1764869934494,58.60204633,141.65,141.64,0.1]
[1764869934803,66.40204633,141.65,141.64,0.1]
[1764869936398,64.76914299,141.65,141.64,0.1]
[1764869937095,56.96914299,141.65,141.64,0.1]
[1764869937297,64.76914299,141.65,141.64,0.1]
[1764869939296,61.18362291,141.65,141.64,0.1]
[1764869939502,25.11880892,141.65,141.64,0.78]
[1764869939696,32.91880892,141.65,141.64,0.78]
[1764869939904,32.17846299,141.65,141.64,0.78]
[1764869940106,42.88398307,141.65,141.64,0.78]
[1764869940879,35.76398307,141.65,141.64,0.1]
[1764869941079,25.11880892,141.61,141.59,22.53176781]
[1764869941281,10.72552008,141.6,141.59,22.53176781]
[1764869942506,14.74077909,141.6,141.59,22.53176781]
[1764869942680,21.80292598,141.6,141.59,22.53176781]
[1764869943298,30.6128709,141.6,141.59,22.53176781]
[1764869943506,25.11880892,141.56,141.53,0.1]
[1764869943693,15.73072401,141.54,141.53,0.1]
[1764869944013,23.55072401,141.54,141.53,0.1]
[1764869944591,16.62994492,141.54,141.53,0.1]
[1764869944790,23.55072401,141.54,141.53,0.1]
[1764869945110,30.6158646,141.54,141.53,0.1]
[1764869946083,23.55072401,141.54,141.53,0.1]
[1764869946583,23.55072401,141.54,141.53,0.78]
[1764869946584,7.82,141.54,141.53,0.78]
[1764869946784,7.82,141.54,141.53,7.84563979]
[1764869947299,6.92077909,141.55,141.53,0.78]
[1764869947509,14.74077909,141.56,141.54,0.68]
[1764869948090,14.74077909,141.56,141.52,65.84661363]
[1764869949088,7.82,141.56,141.52,65.84661363]
[1764869949288,14.88425777,141.56,141.52,72.91263426]
[1764869949990,6.92077909,141.54,141.52,65.84661363]
[1764869950208,6.92077909,141.53,141.52,65.84661363]
[1764869950708,14.74077909,141.53,141.52,66.52661363]
[1764869950895,14.74077909,141.53,141.52,65.84661363]
[1764869952496,7.82,141.53,141.52,65.84661363]
[1764869952702,16.308864,141.57,141.52,65.84661363]
[1764869952703,7.82,141.55,141.52,66.52661363]
[1764869952898,14.74077909,141.55,141.53,0.69]
[1764869953097,14.74077909,141.55,141.52,65.84661363]
[1764869953098,40.55958801,141.54,141.52,65.84661363]
[1764869953313,38.9603671,141.53,141.52,28.26412994]
[1764869953486,38.9603671,141.53,141.5,0.05522277]
[1764869953487,8.80994492,141.52,141.5,0.05522277]
[1764869953692,14.74077909,141.51,141.5,0.05522277]
[1764869953891,15.44077909,141.51,141.5,0.05522277]
[1764869955023,22.50741749,141.51,141.5,0.05522277]
[1764869955241,25.11880892,141.48,141.44,71.88190806]
[1764869955436,32.03958801,141.45,141.44,71.88190806]
[1764869955727,39.85958801,141.45,141.44,71.88190806]
[1764869955902,6.92077909,141.46,141.44,72.57190806]
[1764869956097,6.92077909,141.45,141.44,71.88190806]
[1764869956403,14.76077909,141.45,141.44,71.88190806]
[1764869956714,40.57958801,141.45,141.44,71.88190806]
[1764869957023,54.57000301,141.45,141.44,4.66947479]
[1764869957328,38.26113901,141.45,141.44,4.66947479]
[1764869957535,46.94922392,141.45,141.44,4.66947479]
[1764869957822,40.57958801,141.45,141.44,4.66947479]
[1764869958120,39.87958801,141.45,141.44,4.66947479]
[1764869958502,24.148864,141.45,141.44,12.42961053]
[1764869958710,23.57072401,141.45,141.44,12.42961053]
[1764869959199,6.92077909,141.45,141.44,5.35947479]
[1764869959519,6.92077909,141.45,141.44,4.66947479]
[1764869959721,6.92077909,141.45,141.44,5.35947479]
[1764869960599,15.73072401,141.46,141.44,12.42961053]
[1764869961033,8.80994492,141.46,141.44,11.73961053]
[1764869961319,14.76077909,141.47,141.45,0.69]
[1764869961320,8.80994492,141.47,141.45,0.69]
[1764869961936,8.80994492,141.48,141.45,0.69]
[1764869962624,15.73072401,141.48,141.46,7.06913615]
[1764869963046,8.80994492,141.48,141.47,0.69]
[1764869963360,8.80994492,141.49,141.47,0.69]
[1764869963655,15.73072401,141.49,141.47,0.69]
[1764869964226,8.80994492,141.5,141.47,0.69]
[1764869964532,6.92077909,141.49,141.47,0.69]
[1764869964740,6.92077909,141.49,141.47,7.75850242]
[1764869964948,8.80994492,141.5,141.47,7.75850242]
[1764869965148,8.80994492,141.5,141.48,0.69]
[1764869966553,15.73072401,141.5,141.48,0.69]
[1764869966931,15.73072401,141.5,141.48,7.75794789]
[1764869967527,16.308864,141.51,141.49,0.69]
[1764869967760,6.92077909,141.51,141.49,0.69]
[1764869967952,6.92077909,141.5,141.47,7.75849265]
[1764869968153,15.73072401,141.48,141.46,7.06900763]
[1764869968339,15.73072401,141.48,141.46,7.75900763]
[1764869968654,15.73072401,141.48,141.46,0.69]
[1764869969081,15.73072401,141.48,141.46,7.75906569]
[1764869969364,8.80994492,141.48,141.46,7.75906569]
[1764869969756,8.80994492,141.48,141.46,0.69]
[1764869970845,8.80994492,141.48,141.46,7.75913503]
[1764869971661,8.80994492,141.48,141.47,0.69]
[1764869972060,8.80994492,141.48,141.46,7.06913503]
[1764869972275,8.80994492,141.48,141.46,0.69]
[1764869972465,15.87812803,141.48,141.44,11.73945883]
[1764869972671,6.92077909,141.46,141.44,5.35947479]
[1764869973158,8.80994492,141.45,141.44,4.66947479]
[1764869973364,15.73072401,141.45,141.44,4.66947479]
[1764869973558,8.80994492,141.45,141.44,4.66947479]
[1764869974350,8.80994492,141.45,141.44,5.35947479]
[1764869974673,7.84,141.5,141.44,12.42961053]
[1764869974878,2.91217697,141.48,141.45,0.69]
[1764869975350,8.80994492,141.49,141.45,0.69]
[1764869975547,2.91217697,141.48,141.45,0.69]
[1764869976353,11.72212189,141.49,141.45,0.69]
[1764869976568,2.91217697,141.48,141.45,7.75962919]
[1764869976876,9.98035514,141.48,141.45,0.69]
[1764869977053,8.80994492,141.47,141.45,0.69]
[1764869977475,11.72212189,141.47,141.45,0.69]
[1764869977783,11.72212189,141.47,141.44,4.66947479]
[1764869977784,8.80994492,141.47,141.44,4.66947479]
[1764869977952,7.0666384,141.51,141.45,7.75943875]
[1764869978160,2.91217697,141.48,141.45,7.75943875]
[1764869978376,8.80994492,141.5,141.46,0.69]
[1764869978574,2.91217697,141.48,141.46,0.69]
[1764869980478,6.93166024,141.48,141.46,7.7590695]
[1764869980654,6.93166024,141.49,141.47,0.69]
[1764869980859,15.87721688,141.5,141.47,0.69]
[1764869981078,6.93166024,141.49,141.47,0.69]
[1764869981657,6.93166024,141.48,141.46,7.7590695]
[1764869981851,6.93166024,141.48,141.47,0.69]
[1764869982075,6.93166024,141.49,141.47,0.69]
[1764869982869,8.80994492,141.55,141.47,22.53015759]
[1764869983186,6.93166024,141.53,141.48,6.93166024]
[1764869983373,15.74160516,141.53,141.48,7.63166024]
[1764869983571,8.80994492,141.53,141.49,0.7]
[1764869983774,15.74160516,141.53,141.49,0.7]
[1764869984101,15.87580808,141.53,141.49,0.7]
[1764869984308,6.93166024,141.51,141.49,0.7]
[1764869984677,15.87580808,141.53,141.49,7.76758658]
[1764869985008,6.93166024,141.52,141.49,7.76758658]
[1764869985213,6.93166024,141.52,141.5,0.7]
[1764869985509,15.87580808,141.53,141.5,0.7]
[1764869985695,6.93166024,141.52,141.5,0.7]
[1764869986411,6.93166024,141.51,141.48,7.06805459]
[1764869986584,6.93166024,141.5,141.48,0.71]
[1764869986993,6.93166024,141.49,141.46,7.06902496]
[1764869987200,6.93166024,141.49,141.46,7.77902496]
[1764869987388,6.93166024,141.49,141.47,0.71]